bitfinex-derivatives/quotes_ETHF0:USTF0_20250828
["timestamp","ask_amount","ask_price","bid_price","bid_amount"]
[1756358592972,0.2333,4569.0,4568.5,1.06547]
[1756358593174,21.0708,4568.9,4568.8,1.0803]
[1756358593471,21.0708,4568.9,4568.8,1.6894]
[1756358593472,21.2602,4568.9,4568.8,1.6894]
[1756358593672,21.4935,4568.9,4568.8,1.6894]
[1756358594071,1.2975,4568.9,4568.8,1.6894]
[1756358594270,21.4925,4568.9,4568.8,1.6894]
[1756358594972,21.7767,4568.9,4568.8,1.6894]
[1756358595768,21.4925,4568.9,4568.8,1.6894]
[1756358595970,0.467,4568.9,4568.8,1.6894]
[1756358596169,1.2975,4569.4,4569.3,0.6715]
[1756358596468,21.7767,4569.4,4569.3,0.3074]
[1756358597069,1.5817,4569.4,4569.3,0.3074]
[1756358597271,1.2975,4569.4,4569.3,1.6894]
[1756358597470,21.4915,4569.4,4569.3,1.6894]
[1756358598469,21.67313026,4569.4,4569.3,1.6894]
[1756358598664,0.18163026,4569.4,4569.3,1.6894]
[1756358599575,0.58943026,4569.4,4569.3,1.6894]
[1756358599776,0.18163026,4569.4,4569.3,1.6894]
[1756358600777,0.18163026,4569.4,4569.3,5.6894]
[1756358601174,0.18163026,4569.4,4569.3,5.90825]
[1756358601375,0.18163026,4569.4,4569.3,5.6894]
[1756358603477,1.0798,4570.1,4570.0,0.679]
[1756358603675,1.0798,4570.1,4570.0,1.6796]
[1756358604175,1.3129,4570.1,4570.0,1.6796]
[1756358604374,0.6252,4570.4,4570.3,0.2006]
[1756358604577,21.7772,4570.4,4570.3,1.0014]
[1756358604778,21.7772,4570.4,4570.3,0.8008]
[1756358605079,21.7772,4570.4,4570.3,1.6796]
[1756358607179,1.5872,4570.4,4570.3,1.6796]
[1756358607486,21.4979,4570.4,4570.3,1.6796]
[1756358608084,21.4969,4570.4,4570.3,1.6796]
[1756358608285,1.3089,4570.4,4570.3,1.6796]
[1756358610286,1.48997499,4570.4,4570.3,1.6796]
[1756358611280,0.18107499,4570.4,4570.3,1.6796]
[1756358611793,1.5872,4571.4,4571.3,1.2838]
[1756358611993,1.5872,4571.4,4571.3,1.6796]
[1756358612489,1.3089,4571.4,4571.3,1.6796]
[1756358613089,0.2783,4571.7,4571.6,1.3972]
[1756358613090,12.3328,4571.7,4571.6,1.3972]
[1756358613285,12.3328,4571.7,4571.6,1.6796]
[1756358613286,1.0758,4571.7,4571.6,1.6796]
[1756358613690,0.8813,4571.7,4571.6,1.6796]
[1756358614093,0.6252,4572.0,4571.6,1.6796]
[1756358614295,0.6252,4572.0,4571.8,0.483]
[1756358614296,0.3921,4571.9,4571.8,0.483]
[1756358614493,0.5953,4571.9,4571.8,42.4796]
[1756358615195,0.5953,4571.9,4571.8,45.6874]
[1756358616699,0.8284,4571.9,4571.8,45.6874]
[1756358619895,0.6837,4571.4,4571.2,3.2078]
[1756358620101,2.72477132,4571.2,4570.7,3.5081]
[1756358620402,2.95787132,4570.8,4570.7,3.2078]
[1756358620700,23.13487132,4570.8,4570.7,3.2078]
[1756358620890,23.13487132,4570.8,4570.7,3.5081]
[1756358621794,21.7642,4570.8,4570.7,3.5081]
[1756358621995,21.7642,4570.8,4570.7,3.8126]
[1756358622404,21.7642,4570.8,4570.7,4.0086]
[1756358622606,21.7642,4570.8,4570.7,4.8874]
[1756358622998,21.7642,4570.8,4570.7,4.4916]
[1756358623703,21.7642,4570.8,4570.4,0.3958]
[1756358623902,0.5114,4570.7,4570.6,0.3045]
[1756358624205,0.5114,4570.7,4570.6,0.6048]
[1756358624206,1.5872,4570.7,4570.6,0.6048]
[1756358624708,1.5872,4570.7,4570.6,0.3003]
[1756358625299,1.5872,4570.7,4570.6,0.6048]
[1756358625606,21.4849,4570.7,4570.6,1.6796]
[1756358625907,21.7632,4570.7,4570.6,1.6796]
[1756358626105,21.2518,4570.7,4570.4,0.3003]
[1756358626407,1.5872,4570.5,4570.4,0.6048]
[1756358626798,1.5872,4570.5,4570.4,0.8008]
[1756358627000,1.5872,4570.5,4570.4,1.6796]
[1756358627503,1.3089,4570.5,4570.4,1.6796]
[1756358627902,1.0758,4570.5,4570.4,1.6796]
[1756358628105,0.6837,4569.9,4569.8,1.0014]
[1756358628402,1.3089,4569.4,4569.3,1.6796]
[1756358628594,21.7612,4569.4,4569.3,1.6796]
[1756358629203,21.7612,4569.4,4569.3,0.3003]
[1756358629511,21.7612,4569.4,4569.2,44.0078]
[1756358629512,1.5872,4569.3,4569.2,3.2078]
[1756358629701,1.3541,4569.3,4568.6,0.17708027]
[1756358629907,1.3089,4568.8,4568.7,42.4796]
[1756358630206,21.4829,4568.8,4568.7,42.4796]
[1756358630402,0.4805,4568.0,4567.9,0.3003]
[1756358630708,1.5872,4567.9,4567.8,3.5081]
[1756358631410,1.5872,4567.9,4567.8,3.7041]
[1756358631708,1.5872,4567.9,4567.8,3.996]
[1756358631907,1.5872,4567.9,4567.8,4.1905]
[1756358632611,1.5872,4567.9,4567.8,4.4729]
[1756358633507,1.5872,4567.9,4567.8,4.882]
[1756358634014,0.8881,4567.9,4567.8,4.882]
[1756358634214,20.178,4567.9,4567.8,4.882]
[1756358634702,21.2486,4567.9,4567.8,4.882]
[1756358634901,1.0706,4567.9,4567.8,4.882]
[1756358635208,20.6522,4567.9,4567.8,4.882]
[1756358635507,21.0511,4567.9,4567.8,4.882]
[1756358636203,20.6532,4567.9,4567.8,4.882]
[1756358636409,21.2496,4567.9,4567.8,4.882]
[1756358636611,21.4828,4567.9,4567.8,4.882]
[1756358637603,0.6321,4568.3,4567.8,4.882]
[1756358637809,21.4828,4568.2,4568.1,1.6586]
[1756358640809,21.4838,4568.2,4568.1,1.6586]
[1756358641204,1.3038,4568.2,4568.1,1.6586]
[1756358641406,0.1968,4568.8,4568.7,1.2495]
[1756358641710,20.18,4568.8,4568.7,4.8664]
[1756358641899,0.2332,4569.2,4568.7,3.8802]
[1756358642103,0.6321,4569.2,4568.9,1.6586]
[1756358642302,51.695,4569.0,4568.9,1.6586]
[1756358642510,3.5119,4569.4,4569.3,1.6586]
[1756358642511,4.0809,4569.4,4569.3,1.6586]
[1756358642704,3.2078,4569.4,4569.3,1.6586]
[1756358642905,12.7468,4569.4,4569.3,1.6586]
[1756358643103,12.7468,4569.4,4569.3,42.4586]
[1756358644007,18.601,4569.4,4569.3,41.4724]
[1756358644211,18.601,4569.4,4569.3,42.4586]
[1756358645411,18.9999,4569.4,4569.3,42.4586]
[1756358645802,18.601,4569.4,4569.3,42.4586]
[1756358646003,0.6717,4569.3,4569.2,3.2078]
[1756358646312,1.6079,4568.5,4568.4,0.2852]
[1756358646514,20.8497,4568.5,4568.2,3.2078]
[1756358646814,1.6079,4568.3,4568.2,3.2078]
[1756358647010,1.6079,4568.3,4568.0,0.2852]
[1756358647211,1.6079,4568.1,4568.0,0.2852]
[1756358647808,1.6079,4568.1,4568.0,1.2495]
[1756358648012,1.6079,4568.1,4568.0,1.6586]
[1756358648217,21.7859,4568.1,4568.0,1.6586]
[1756358648409,1.6079,4568.1,4568.0,1.6586]
[1756358648708,21.7859,4568.1,4568.0,1.6586]
[1756358649016,21.7859,4568.1,4568.0,1.2495]
[1756358649217,21.7859,4568.1,4567.7,0.4091]
[1756358649218,21.2486,4568.1,4567.7,0.701]
[1756358649512,1.3037,4567.9,4567.8,1.6586]
[1756358649912,1.3037,4568.3,4568.2,1.6586]
[1756358650106,3.8346,4568.3,4568.2,1.6586]
[1756358651211,4.0677,4568.3,4568.2,1.6586]
[1756358651514,1.3037,4568.3,4568.2,1.6586]
[1756358651720,9.1947,4568.3,4568.2,1.6586]
[1756358652411,14.0657,4568.3,4568.2,1.6586]
[1756358653319,14.3698,4568.3,4568.2,1.6586]
[1756358653712,18.9968,4568.3,4568.2,0.2852]
[1756358653907,0.6717,4568.0,4567.9,0.9746]
[1756358654111,0.9758,4567.8,4567.7,0.2852]
[1756358654312,1.6078,4567.8,4567.7,0.2852]
[1756358654818,1.3037,4567.8,4567.7,1.6586]
[1756358655821,1.0706,4567.8,4567.7,1.6586]
[1756358656118,0.8731,4567.9,4567.8,1.3837]
[1756358656319,0.8731,4567.9,4567.8,1.6586]
[1756358656621,1.3037,4567.9,4567.8,1.6586]
[1756358657918,1.6078,4567.9,4567.8,1.6586]
[1756358658117,1.3037,4567.9,4567.8,1.6586]
[1756358658922,1.0706,4567.9,4567.8,1.6586]
[1756358659421,1.3037,4567.9,4567.8,1.6586]
[1756358660016,1.6078,4567.9,4567.8,1.2495]
[1756358660223,1.6078,4567.9,4567.8,1.6586]
[1756358660420,1.3037,4567.9,4567.8,1.6586]
[1756358660722,1.3037,4567.9,4567.8,0.4882]
[1756358660723,1.6078,4567.9,4567.8,0.4882]
[1756358660917,1.6078,4567.9,4567.8,0.7801]
[1756358661118,1.6078,4567.9,4567.8,1.6586]
[1756358661522,1.3037,4567.9,4567.8,1.6586]
[1756358662818,1.5969,4567.9,4567.8,1.6586]
[1756358663018,1.5969,4567.9,4567.8,0.9746]
[1756358663725,0.6717,4567.9,4567.6,3.4899]
[1756358664022,1.6185,4567.7,4567.6,4.8658]
[1756358664225,1.6185,4567.7,4567.6,3.7789]
[1756358664616,1.3253,4567.7,4567.6,4.8658]
[1756358666118,1.6185,4567.7,4567.6,4.8658]
[1756358667528,1.6185,4567.7,4567.6,4.4651]
[1756358668229,1.6185,4567.7,4567.6,4.8658]
[1756358669224,2.98985566,4567.7,4567.6,0.2821]
[1756358669425,2.98985566,4567.7,4567.2,0.45942192]
[1756358669426,1.6185,4567.4,4567.3,0.5711]
[1756358669724,0.2932,4567.3,4567.2,0.17042192]
[1756358669920,1.6185,4567.3,4567.2,0.2821]
[1756358670125,1.6185,4567.3,4567.2,0.7745]
[1756358670322,1.6185,4567.3,4567.2,0.9781]
[1756358670728,1.6185,4567.3,4567.2,1.658]
[1756358671428,1.3253,4567.3,4567.2,1.658]
[1756358671628,0.4275,4567.5,4567.2,0.6862]
[1756358671829,0.9006,4567.5,4567.4,1.658]
[1756358672225,0.2335,4567.7,4567.4,1.658]
[1756358672425,0.55348514,4567.6,4567.5,0.9718]
[1756358672620,0.4275,4567.8,4567.5,0.6862]
[1756358672827,0.8978,4568.0,4567.9,0.6862]
[1756358673130,0.8978,4568.0,4567.9,1.658]
[1756358673326,1.45141006,4568.0,4567.9,1.658]
[1756358673533,1.87891006,4568.0,4567.9,1.658]
[1756358674132,1.3253,4568.0,4567.9,1.658]
[1756358674431,1.87919261,4568.0,4567.9,1.658]
[1756358675228,1.3253,4568.0,4567.9,1.658]
[1756358675429,1.87955021,4568.0,4567.9,1.658]
[1756358676830,22.05455021,4568.0,4567.9,1.658]
[1756358678026,31.9605,4568.8,4568.4,0.39397]
[1756358678228,32.4336,4568.8,4568.7,1.658]
[1756358678420,33.17911126,4568.8,4568.7,1.658]
[1756358678626,33.41261126,4568.8,4568.7,1.658]
[1756358678829,32.6248,4568.8,4568.7,1.658]
[1756358679021,32.0061,4568.8,4568.7,1.658]
[1756358679227,20.174,4569.0,4568.9,0.2792]
[1756358679435,21.2658,4569.0,4568.9,1.658]
[1756358680232,21.2658,4569.0,4568.9,2.05194]
[1756358680531,21.2648,4569.0,4568.9,2.05194]
[1756358681230,1.0918,4569.0,4568.9,2.05194]
[1756358681434,21.2648,4569.0,4568.9,2.05194]
[1756358681623,21.4983,4569.0,4568.9,1.658]
[1756358683628,1.6185,4569.0,4568.9,1.658]
[1756358683827,21.7895,4569.0,4568.9,1.658]
[1756358685731,21.4963,4569.0,4568.9,1.658]
[1756358685931,1.3253,4569.0,4568.9,1.658]
[1756358686230,21.4943,4569.0,4568.9,1.658]
[1756358686436,1.3253,4569.0,4568.9,1.658]
[1756358686637,13.0085,4569.0,4568.9,1.658]
[1756358686838,1.3253,4569.0,4568.9,1.658]
[1756358687236,3.2078,4569.1,4568.9,1.658]
[1756358687237,0.4275,4569.6,4569.4,0.39389]
[1756358687436,0.5012,4569.9,4569.8,1.369]
[1756358687638,0.5012,4569.9,4569.8,0.9683]
[1756358688142,0.7347,4569.9,4569.8,1.2573]
[1756358688337,0.7347,4569.9,4569.8,1.658]
[1756358689441,1.1223,4569.9,4569.8,1.658]
[1756358690942,21.2873,4569.9,4569.8,1.658]
[1756358693243,1.1223,4569.9,4569.8,1.658]
[1756358693445,21.2863,4569.9,4569.8,1.658]
[1756358695147,21.2863,4569.9,4569.8,1.2573]
[1756358696851,21.2863,4569.9,4569.8,0.7745]
[1756358697950,0.4903,4569.7,4569.5,3.2078]
[1756358698156,21.2891,4569.6,4569.5,3.2078]
[1756358701455,21.2891,4569.6,4569.5,3.5062]
[1756358702454,1.1112,4569.6,4569.5,4.8963]
[1756358702755,21.2395,4569.6,4569.5,4.8963]
[1756358703555,0.3875,4569.9,4569.6,0.39388]
[1756358703862,0.8491,4570.1,4570.0,2.08234]
[1756358704051,21.0061,4570.1,4570.0,2.08234]
[1756358704257,21.2682,4570.1,4570.0,1.6885]
[1756358704852,31.535,4570.2,4570.1,1.04754]
[1756358705053,0.2334,4570.7,4570.3,0.39382]
[1756358705360,0.2334,4570.7,4570.6,1.6885]
[1756358705361,0.7237,4570.7,4570.6,1.6885]
[1756358705556,0.0287,4570.7,4570.6,1.6885]
[1756358705761,8.644,4570.7,4570.6,2.08229]
[1756358706260,8.644,4570.7,4570.6,1.6885]
[1756358706658,0.6209,4571.5,4571.3,1.0348]
[1756358706862,31.524,4571.8,4571.4,45.6963]
[1756358707058,20.3884,4571.7,4571.5,1.0348]
[1756358707359,20.8787,4571.7,4571.6,1.6885]
[1756358707560,21.06473112,4571.7,4571.6,1.6885]
[1756358707749,21.45223112,4571.7,4571.6,1.6885]
[1756358709859,21.45223112,4571.7,4571.6,0.4908]
[1756358712664,21.44623112,4571.7,4571.6,0.4908]
[1756358712963,1.29723112,4571.7,4571.6,0.7947]
[1756358713164,21.44523112,4571.7,4571.6,1.6885]
[1756358713858,1.29723112,4571.7,4571.6,1.6885]
[1756358714060,21.44523112,4571.7,4571.6,1.6885]
[1756358714359,21.44523112,4571.7,4571.6,0.2984]
[1756358714566,21.46303112,4571.7,4571.6,0.2984]
[1756358714963,21.44523112,4571.7,4571.6,0.2984]
[1756358715259,21.44523112,4571.7,4571.6,0.7947]
[1756358715461,21.44423112,4571.7,4571.6,0.7947]
[1756358716959,1.31503112,4571.7,4571.6,0.2984]
[1756358717160,21.46003112,4571.7,4571.6,0.2984]
[1756358717761,21.45986175,4571.7,4571.6,0.2984]
[1756358718562,21.45984927,4571.7,4571.6,0.2984]
[1756358719668,21.45984279,4571.7,4571.6,0.2984]
[1756358721169,21.45984317,4571.7,4571.6,0.2984]
[1756358724070,21.45484317,4571.7,4571.6,0.2984]
[1756358725366,21.45384317,4571.7,4571.6,0.2984]
[1756358725567,21.43604317,4571.7,4571.6,0.2984]
[1756358727274,21.43604317,4571.7,4571.6,0.7907]
[1756358727576,21.43504317,4571.7,4571.6,1.6643]
[1756358727777,1.29704317,4571.7,4571.6,1.6643]
[1756358727970,21.43404317,4571.7,4571.6,1.6643]
[1756358728170,21.43414107,4571.7,4571.6,1.6643]
[1756358728365,21.2482,4571.7,4571.6,1.6643]
[1756358728572,21.43420512,4571.7,4571.6,1.6643]
[1756358729372,21.43420512,4571.7,4571.6,0.7907]
[1756358729572,21.45280512,4571.7,4571.6,0.2984]
[1756358732275,21.43420512,4571.7,4571.6,1.6643]
[1756358735083,21.43120512,4571.7,4571.6,1.6643]
[1756358735684,1.31500512,4571.7,4571.6,0.2984]
[1756358735878,21.44800512,4571.7,4571.6,0.2984]
[1756358736278,22.00356408,4571.7,4571.6,0.2984]
[1756358738584,22.00719235,4571.7,4571.6,0.2984]
[1756358739277,21.98739294,4571.7,4571.6,0.2984]
[1756358739478,22.00519108,4571.7,4571.6,0.2984]
[1756358741479,0.6206,4571.6,4571.4,3.2078]
[1756358741671,0.0178,4571.4,4570.9,3.5028]
[1756358741879,1.1182,4571.0,4570.9,3.2078]
[1756358742073,1.1182,4570.6,4570.5,0.295]
[1756358742282,0.8671,4570.5,4569.9,3.4955]
[1756358742483,1.1004,4570.0,4569.9,3.7001]
[1756358742683,21.41806915,4570.0,4569.9,44.5001]
[1756358742883,21.43586915,4570.0,4569.9,44.2124]
[1756358743079,21.43586915,4570.0,4569.9,44.5074]
[1756358743780,21.43586915,4570.0,4569.9,41.2996]
[1756358744678,21.43586915,4570.0,4569.9,0.4996]
[1756358744879,21.43586915,4570.0,4569.9,0.7873]
[1756358744880,21.41806915,4570.0,4569.9,0.7873]
[1756358745177,1.29006915,4570.0,4569.9,1.6609]
[1756358745381,4.68966915,4570.0,4569.9,3.03225566]
[1756358745681,5.79006915,4570.0,4569.9,1.6609]
[1756358746881,5.79006915,4570.0,4569.9,4.8687]
[1756358747083,1.29006915,4570.0,4569.9,4.8687]
[1756358747283,4.10426915,4570.0,4569.9,4.8687]
[1756358747482,3.71696915,4570.0,4569.9,4.8687]
[1756358747682,0.64096915,4570.0,4569.9,4.8687]
[1756358747878,1.02826915,4570.0,4569.9,4.8687]
[1756358748187,0.18966915,4570.0,4569.9,6.45887566]
[1756358748490,0.18966915,4570.0,4569.9,4.8687]
[1756358748886,0.18850008,4570.0,4569.9,4.28905]
[1756358749088,0.18850008,4570.0,4569.9,5.26255]
[1756358749477,0.18850008,4570.0,4569.9,46.06255]
[1756358750484,0.18850008,4570.0,4569.9,45.6687]
[1756358750686,0.80910008,4570.0,4569.9,45.6687]
[1756358750990,1.28890008,4570.0,4569.9,4.4779]
[1756358751486,0.66830008,4570.0,4569.4,3.5064]
[1756358751690,1.1272,4569.5,4569.4,3.5064]
[1756358751885,14.15870008,4569.5,4569.4,3.5064]
[1756358752283,13.9702,4569.5,4569.4,3.5064]
[1756358752585,14.15860608,4569.5,4569.4,0.2986]
[1756358752790,14.15860608,4569.5,4569.4,0.5014]
[1756358752791,21.42350608,4569.5,4569.4,0.5014]
[1756358753091,0.48160608,4569.5,4569.4,1.661]
[1756358753292,0.18840608,4569.5,4569.4,1.661]
[1756358753885,1.26850608,4569.5,4569.4,1.661]
[1756358754088,1.29750608,4569.5,4569.4,1.661]
[1756358755286,9.58550608,4569.5,4569.4,4.8688]
[1756358755486,1.29750608,4569.5,4569.4,4.8688]
[1756358756391,1.03490608,4569.5,4569.4,4.8688]
[1756358756889,1.03490608,4569.5,4569.4,1.661]
[1756358757582,0.18840608,4569.5,4569.4,4.8688]
[1756358759183,1.03473274,4569.5,4569.4,4.8688]
[1756358759493,1.29733274,4569.5,4569.4,4.8688]
[1756358760290,1.31543274,4569.5,4569.4,0.2986]
[1756358760697,1.29733274,4569.5,4569.4,0.2986]
[1756358761896,21.42233274,4569.5,4569.4,0.7937]
[1756358762595,20.31323274,4569.5,4569.4,1.661]
[1756358762793,21.42233274,4569.5,4569.4,0.7937]
[1756358762993,21.44043274,4569.5,4569.4,0.2986]
[1756358763791,0.2336,4569.2,4568.9,3.2078]
[1756358763985,1.1272,4569.0,4568.9,3.2078]
[1756358764197,0.6213,4568.9,4568.7,0.2923]
[1756358764394,1.29733274,4568.8,4568.7,0.7937]
[1756358764791,1.29733274,4568.8,4568.7,1.2433]
[1756358764998,1.29733274,4568.8,4568.7,1.661]
[1756358767496,1.29733274,4568.8,4568.7,0.2986]
[1756358767797,1.31543274,4568.8,4568.7,0.2986]
[1756358767994,2.6867884,4568.8,4568.3,3.5001]
[1756358768196,1.1091,4568.4,4568.3,4.1525]
[1756358768496,21.42233572,4568.4,4568.3,4.5702]
[1756358768696,21.42233572,4568.4,4568.3,4.8688]
[1756358768898,21.42233572,4568.4,4568.3,1.661]
[1756358769296,22.81179138,4568.4,4568.3,0.2986]
[1756358769496,22.19049138,4568.4,4567.8,3.2078]
[1756358769791,22.19049138,4568.4,4567.9,0.2986]
[1756358769792,0.8755,4568.0,4567.9,0.2986]
[1756358769997,21.20683572,4568.0,4567.9,0.2986]
[1756358770199,21.44043572,4568.0,4567.9,0.2986]
[1756358770391,21.44043572,4568.0,4567.8,3.2078]
[1756358770600,21.44043572,4568.0,4567.2,3.4106]
[1756358770601,1.1091,4567.3,4567.2,3.4106]
[1756358770791,0.3877,4567.2,4566.6,3.2078]
[1756358770993,0.64643572,4567.1,4567.0,0.5014]
[1756358771201,1.29833572,4567.1,4567.0,1.2433]
[1756358771401,1.29833572,4567.1,4567.0,1.661]
[1756358771604,1.29833572,4567.1,4567.0,1.2433]
[1756358771901,1.29833572,4567.1,4567.0,1.661]
[1756358772791,1.29833572,4567.1,4567.0,0.688]
[1756358773201,1.29833572,4567.1,4567.0,0.9803]
[1756358774105,1.29833572,4567.1,4567.0,1.2433]
[1756358774305,1.29833572,4567.1,4567.0,1.661]
[1756358774598,0.6394,4567.0,4566.6,3.2078]
[1756358774799,1.1091,4566.7,4566.6,4.1525]
[1756358774999,1.31643572,4566.7,4566.6,3.2078]
[1756358775203,0.4878,4566.3,4566.2,1.2433]
[1756358775401,21.42433572,4566.3,4566.2,1.661]
[1756358775604,1.29833572,4566.3,4566.2,1.661]
[1756358775903,10.04123572,4566.3,4566.2,1.661]
[1756358776205,0.18923572,4566.3,4566.2,1.661]
[1756358777715,0.18923572,4566.3,4566.2,42.461]
[1756358778611,0.3877,4567.0,4566.9,1.661]
[1756358778798,1.29776866,4567.0,4566.9,1.661]
[1756358779004,21.42476866,4567.0,4566.9,1.661]
[1756358779415,1.29779105,4567.0,4566.9,1.661]
[1756358779601,21.42479105,4567.0,4566.9,1.661]
[1756358780104,21.44289105,4567.0,4566.9,0.2986]
[1756358780304,21.44289105,4567.0,4566.2,0.2923]
[1756358780305,0.6394,4566.9,4566.2,0.2923]
[1756358780615,24.31569105,4567.0,4566.4,0.2986]
[1756358780616,1.1272,4566.5,4566.4,0.2986]
[1756358780912,0.4878,4566.3,4566.1,3.2078]
[1756358781111,1.29779105,4566.2,4566.1,4.5702]
[1756358781308,20.96859105,4566.2,4566.1,4.5702]
[1756358781509,20.96859105,4566.2,4566.1,4.8775]
[1756358781510,0.18869105,4566.2,4566.1,4.8775]
[1756358781705,0.68949105,4566.2,4566.1,4.8775]
[1756358781911,0.18869105,4566.2,4566.1,4.1968]
[1756358782105,0.40799105,4566.2,4566.1,4.1968]
[1756358782419,0.64249105,4566.2,4566.1,0.3073]
[1756358783210,0.64249105,4566.2,4566.1,1.0066]
[1756358783405,8.26949105,4566.2,4566.1,1.0066]
[1756358784207,0.64249105,4566.2,4566.1,1.0066]
[1756358784408,15.51549105,4566.2,4566.1,1.0066]
[1756358784608,0.64249105,4566.2,4566.1,1.0066]
[1756358785316,0.40799105,4566.2,4566.1,1.0066]
[1756358785509,0.64249105,4566.2,4566.1,1.0066]
[1756358788310,0.18869105,4566.2,4566.1,1.0066]
[1756358788511,20.31869105,4566.2,4566.1,1.0066]
[1756358788712,20.31871073,4566.2,4566.1,1.0066]
[1756358789113,0.18870526,4566.2,4566.1,1.0066]
[1756358789316,0.18870526,4566.2,4566.1,4.2144]
[1756358789911,0.1887775,4566.2,4566.1,3.6026]
[1756358790113,0.1887775,4566.2,4566.1,4.2144]
[1756358790719,0.4080775,4566.2,4566.1,4.2144]
[1756358790924,0.3777775,4566.2,4566.1,4.2144]
[1756358791113,0.1887775,4566.2,4566.1,4.2144]
[1756358791315,0.1887775,4566.2,4566.1,5.58575566]
[1756358791514,6.097,4567.3,4567.1,0.3948]
[1756358791716,20.13,4567.3,4567.1,1.0066]
[1756358791923,0.2345,4567.8,4567.1,3.9099]
[1756358792221,20.13,4567.9,4567.7,0.3948]
[1756358792416,20.13,4567.9,4567.8,1.0066]
[1756358792614,0.2345,4568.2,4567.9,0.6118]
[1756358792819,3.2078,4568.3,4567.9,0.6118]
[1756358792820,0.6142,4568.0,4567.9,1.0066]
[1756358793324,0.5874,4567.4,4567.3,0.5083]
[1756358793522,0.189,4567.2,4566.6,0.3073]
[1756358793721,0.3797,4566.7,4566.4,0.3073]
[1756358794024,0.3797,4566.4,4566.3,0.8128]
[1756358794222,0.6142,4566.4,4566.3,1.0066]
[1756358795419,10.469,4566.4,4566.3,0.3948]
[1756358795619,10.6597,4566.4,4566.3,1.0066]
[1756358795813,11.0832,4566.4,4566.3,1.0066]
[1756358797112,11.2909,4566.4,4566.3,0.3073]
[1756358797421,11.2909,4566.4,4566.3,0.6118]
[1756358798015,0.3797,4566.1,4566.0,0.3073]
[1756358798218,0.8219,4566.1,4566.0,0.3073]
[1756358798723,0.1907,4565.4,4565.3,1.0066]
[1756358799422,0.6142,4565.7,4565.6,0.3948]
[1756358799617,0.6142,4565.7,4565.6,1.0066]
[1756358800822,0.3797,4565.7,4565.6,1.0066]
[1756358801128,0.2345,4566.0,4565.6,0.3948]
[1756358801324,10.1879,4566.0,4565.9,0.5083]
[1756358801625,1.16982873,4566.0,4565.9,1.0066]
[1756358801824,20.13,4566.3,4565.9,0.6993]
[1756358802122,20.13,4566.3,4566.0,0.3948]
[1756358802326,20.319,4566.3,4566.2,0.1938]
[1756358802527,20.5097,4566.3,4566.2,1.0066]
[1756358802727,0.6142,4566.3,4566.2,1.0066]
[1756358803623,1.16987663,4566.3,4566.2,1.0066]
[1756358804625,20.13,4566.4,4566.3,0.6118]
[1756358804827,20.68579317,4566.4,4566.3,1.0066]
[1756358805424,20.68579317,4566.4,4566.3,1.2862]
[1756358805628,21.54129317,4566.4,4566.3,1.6862]
[1756358805828,21.73029317,4566.4,4566.3,1.6862]
[1756358806132,1.83479317,4566.4,4566.3,1.6862]
[1756358806336,1.279,4566.4,4566.3,1.6862]
[1756358806734,0.1907,4566.4,4566.3,1.6862]
[1756358807027,10.6936,4566.5,4566.4,1.6862]
[1756358807233,11.7143026,4566.5,4566.4,1.6862]
[1756358807439,0.5558026,4566.5,4566.4,1.6862]
[1756358807728,20.13,4566.5,4566.4,1.6862]
[1756358807930,3.2078,4566.6,4566.4,0.6744]
[1756358808137,24.1933,4566.6,4566.5,1.6862]
[1756358808323,24.93811621,4566.6,4566.5,1.6862]
[1756358808630,25.17261621,4566.6,4566.5,1.6862]
[1756358808825,1.83481621,4566.6,4566.5,1.6862]
[1756358809034,21.409,4566.6,4566.5,1.6862]
[1756358810139,1.279,4566.6,4566.5,1.6862]
[1756358810335,21.409,4566.6,4566.5,1.6862]
[1756358810638,1.279,4566.6,4566.5,1.6862]
[1756358810841,21.408,4566.6,4566.5,1.6862]
[1756358811632,21.6149,4566.6,4566.5,0.3073]
[1756358811926,0.6626,4566.3,4566.2,0.3049]
[1756358812134,1.4908,4566.3,4566.2,0.5037]
[1756358812340,1.2839,4566.3,4566.2,1.6672]
[1756358813431,1.2839,4566.3,4566.2,4.875]
[1756358813639,1.0503,4566.3,4566.2,4.875]
[1756358814836,0.8962,4566.4,4566.2,3.2078]
[1756358815041,1.2839,4566.4,4566.3,1.0773]
[1756358815237,1.0503,4566.4,4566.3,1.0773]
[1756358815434,20.129,4566.4,4566.3,1.6672]
[1756358815740,20.5167,4566.4,4566.3,1.6672]
[1756358816042,20.7204,4566.4,4566.3,1.6672]
[1756358816236,20.9901,4566.4,4566.3,1.6672]
[1756358816934,0.8611,4566.4,4566.3,2.06136]
[1756358817131,10.743,4566.4,4566.3,2.06136]
[1756358817330,19.421,4566.4,4566.3,2.06136]
[1756358817529,0.6213,4567.0,4566.3,1.20439]
[1756358817733,20.32583152,4567.3,4567.2,1.6672]
[1756358817935,20.51503152,4567.3,4567.2,1.6672]
[1756358818137,20.74863152,4567.3,4567.2,1.6672]
[1756358819142,0.38703152,4567.3,4567.2,1.6672]
[1756358819345,20.51503152,4567.3,4567.2,1.6672]
[1756358819548,0.38703152,4567.3,4567.2,1.6672]
[1756358820045,20.32483152,4567.3,4567.2,1.6672]
[1756358820443,3.2078,4567.6,4567.5,1.6672]
[1756358820744,20.5199,4567.6,4567.5,1.6672]
[1756358821045,20.7535,4567.6,4567.5,1.6672]
[1756358823138,20.7515,4567.6,4567.5,1.6672]
[1756358824250,20.7515,4567.6,4567.5,42.4672]
[1756358825244,20.9525,4567.6,4567.5,40.8]